Workbook

Sheet About
B3: FlowProfile v2.1
B5: 2022-02-28
B7: Hydraulic Modelling of Flow Profiles
B9: 1D Calculation of section averaged depths and velocities through a system of channel and structure elements, based on a combination of Gradually Varied Flow and Rapidly Varied Flow calculations. Can be used to model multi-slope culverts and constrictive bridge openings.
B15: Update History:
B16: Apr. 7, 2009 - creation of first trial version
B17: Sep 25, 2009 - fix bug in ellipse geometry routine
B18: Mar 8, 2010 - fix bug in friction slope calculation using AT equation
B19: Apr 16, 2010 - fix bug in normal depth calculation when max flow exceeded
B20: Dec 29, 2010 - mod mean depth ("R") for trapezoidal channels with Y > h, add def. chan length
B21: Dec 30, 2010 - add Bridge XS Plot, fix default BC input
B22: Jan 4, 2011 - fix bug for Ynorm in adverse slope
B23: Mar 3, 2011 - fix bug in top profile for trapezoidal channel
B24: May 25, 2011 - fix bug in top profile for Full-M2 profile
B25: Mar 25, 2012 - add substrate option for culverts to facilitate fish passage analysis
B26: Mar 1, 2015 - change upper bound for solutions in trapezoidal channels in extreme flows
B27: Mar 2, 2015 - add percent flow input to facilitate iterative analysis for multiple parallel culverts
B28: Mar 2, 2015 - options moved to separate Tab (from Instructions Tab)
B29: Feb 28, 2022 - increased max number of sections to 20

Sheet Options
A10: Options
A12: Hydraulic Loss Coefficient
A13: Contraction | B13: 0.3
A14: Expansion | B14: 0.5
A16: Default Roughness Coefficient
A17: Arch | B17: 0.013
A18: Box | B18: 0.013
A19: Ellipse | B19: 0.028
A20: Round | B20: 0.028
A21: Trapezoid
A23: #Pts per Element | B23: 11
A24: Default Channel Length (m) | B24: 50
A27: *The designer is responsible for confirming the suitability of these parameters for a specific site
A29: Suggested References
A30: Guide for Selecting Manning's Roughness Coefficents for Natural Channels and Flood Plains (USGS, 1989)
A31: report.pdf (usgs.gov)
A32: HEC-RAS Hydraulic Reference Manual
A33: HEC-RAS Hydraulic Reference Manual (army.mil)
A34: Handbook of Highway Drainage (CSPI, 2021)
A35: Technical Information - CSPI
A36: OCPA/ACPA Concrete Pipe Design Manual
A37: Design - CCPPA

Sheet Instructions
A2: Data Entry | B2: 1 | C2: Enter options such as expansion/contraction loss coefficients and roughness coefficients on "Options" sheet. Enter channel/structure geometry data on "Input" screen. Enter boundary condition (Q, d/s depth) on "Input" sheet.
B3: 1a | C3: Alternatively, fill in data on the Templates sheet for a channel and a bridge or culvert, and the necessary data will be filled in on the "Input" sheet. This data can be customized before running the hydraulic analysis.
A5: Run | B5: 2 | C5: Click the "Run" button on the "Input" sheet to perform the hydraulic analysis and display results.
A7: Output | B7: 3 | C7: A summary of the results can be seen on the ""Results" sheet. Detailed profile data can be seen on the "Profile" sheet. A plot of the results can be seen on the "Plot" sheet.
A9: Multiple Parallel Culverts | B9: Opt | C9: Enter a % flow value for the culvert being analysed (between 0 and 100). Note the energy grade line value (E ) at the d/s section of the u/s transition element. Do this for all other parallel culverts at the crossing - separate analysis files. Do again (iteratively), varying % flow for each culvert until the sum of % flow = 100 and the E value at the d/s end of the u/s transition is the same for all culverts. Note: Use 50% for 2 pipes of the same configuration (no need for iteration)
A11: *Refer to user manual for detailed instructions

Sheet Templates
A1: Template Input Data
A2: Typical Channel | D2: Single Culvert | G2: Bridge
A4: B | B4: 4.5 | D4: Shape | E4: R | G4: B | H4: 8 | Y4: =-1.5*B6/2 -> -15 | Z4: =B8+B5 -> 1003 | AB4: =AB5-H5*(B5+1) -> -12 | AC4: =AC5+B5+1 -> 1004
A5: h | B5: 3 | D5: Rise | E5: 3.6 | G5: m | H5: 2 | Y5: =-1*B6/2 -> -10 | Z5: =Z4 -> 1003 | AB5: =-1*H4/2 -> -4 | AC5: =B8 -> 1000
A6: T | B6: 20 | D6: Span | G6: W | H6: 20 | Y6: =-B4/2 -> -2.25 | Z6: =B8 -> 1000 | AB6: =-1*AB5 -> 4 | AC6: =AC5 -> 1000
A7: S | B7: 0.01 | D7: Length | E7: 37 | Y7: =-1*Y6 -> 2.25 | Z7: =Z6 -> 1000 | AB7: =-1*AB4 -> 12 | AC7: =AC4 -> 1004
A8: Elev | B8: 1000 | D8: Burial | E8: =E5/4 -> 0.9 | Y8: =-1*Y5 -> 10 | Z8: =Z5 -> 1003
D9: Ltrans | E9: 10 | Y9: =-1*Y4 -> 15 | Z9: =Z8 -> 1003
A14: Channel Capacity Calculator
E15: h | F15: Ycc | G15: Yspec | H15: Q2 | I15: Yfpd Eqn | J15: Yfpd | Y15: =IF(B17<4,0.05,IF(B17<7,0.045,IF(B17<10,0.04,"AT"))) -> 0.05
A16: S | B16: 0.004 | D16: Y | E16: =B18 -> 0.8 | F16: =IF(B18>2,B18+1,IF(B18<1,B18+0.5,B18+0.5*B18)) -> 1.3 | G16: 0.2 | I16: =0.8-(34.3*B16) -> 0.6628 | J16: =IF(I16<0,0.2,I16) -> 0.6628 | Y16: =IF(AND(B16<=0.0005,B17>=8),-0.005,IF(AND(B16>=0.005,B16<0.015),0.005,IF(B16>0.015,0.01,0))) -> 0
A17: B | B17: 1 | D17: A | E17: =(B17+B19)/2*B18 -> 1.6 | F17: =E17+(F16-E16)*B19 -> 3.1 | G17: =IF(G16<B18,((B17+G16/B18*(B19-B17))+B17)/2*G16,E17+B19*(G16-B18)) -> 0.25 | Y17: =Y15+Y16 -> 0.05
A18: h | B18: 0.8 | D18: d | E18: =IF(B20="",E17/B19,E17/(B17+2*(((B19-B17)/2)^2+B18^2)^0.5)) -> 0.4492804878 | F18: =E18+(F16-E16) -> 0.9492804878 | G18: =IF(B20="", IF(G16<B18,G17/(B17+G16/B18*(B19-B17)),E18+(G16-B18)),IF(G16<B18,G17/(B17+2*(((G16/B18*(B19-B17))/2)^2+G16^2)^0.5),E18+(G16-B18))) -> 0.1524099899
A19: Th | B19: 3 | D19: V | E19: =IF(B20="",14*E18^0.67*B16^0.4,1/B20*E18^0.667*B16^0.5) -> 0.6181700447 | F19: =IF(B20="",14*F18^0.67*B16^0.4,1/B20*F18^0.667*B16^0.5) -> 1.018124557 | G19: =IF(B20="",14*G18^0.67*B16^0.4,1/B20*G18^0.667*B16^0.5) -> 0.300572128
A20: Roughness | B20: 0.06 | D20: Q | E20: =E19*E17 -> 0.9890720716 | F20: =F19*F17 -> 3.156186128 | G20: =G19*G17 -> 0.07514303199 | H20: =IF(B16<0.01,B24/(4+600*B16),B24/10) -> 1.5625
A21: HDG 'n' | B21: =IF(B17<10,Y17,"") -> 0.05
A23: Summary
A24: Qdesign | B24: 10 | C24: Qfpd | D24: 0.2
A25: Vdesign | B25: 3.2 | C25: Vfpd | D25: 1
A26: Ydesign | B26: 1.3 | C26: Yfpd | D26: 0.2

Sheet Input
B1: Boundary Conditions
B2: Q (cms) | C2: 25
B3: D/S BC Type
A5: No. | B5: Section Description | C5: U/S Elev | D5: D/S Elev | E5: Length | F5: Shape | G5: Rise / h | H5: Span / B | I5: T | J5: n | K5: Substrate | L5: n used | M5: S | N5: % Flow
A6: 1 | B6: D/S Channel | C6: 1000 | D6: 999.5 | E6: 50 | F6: T | G6: 3 | H6: 4.5 | I6: 20 | L6: 0.05000000075 | M6: =IF(C6<>"",(C6-D6)/E6,"") -> 0.01
A7: 2 | B7: D/S Transition | C7: 999.2 | D7: 1000 | E7: 10 | F7: T | G7: 3 | H7: 4.5 | I7: 20 | J7: 0.05 | L7: 0.05000000075 | M7: -0.08
A8: 3 | B8: Culvert | C8: 999.57 | D8: 999.2 | E8: 37 | F8: R | G8: 3.6 | L8: 0.02800000086 | M8: 0.01 | N8: 100
A9: 4 | B9: U/S Transition | C9: 1000.57 | D9: 999.57 | E9: 10 | F9: T | G9: 3 | H9: 4.5 | I9: 20 | J9: 0.05 | L9: 0.05000000075 | M9: 0.1
A10: 5 | B10: U/S Channel | C10: 1001.07 | D10: 1000.57 | E10: 50 | F10: T | G10: 3 | H10: 4.5 | I10: 20 | L10: 0.05000000075 | M10: =IF(C10<>"",(C10-D10)/E10,"") -> 0.01
M11: =IF(C11<>"",(C11-D11)/E11,"") -> 
M12: =IF(C12<>"",(C12-D12)/E12,"") -> 

Sheet Results
F1: U/S | I1: D/S | N1: Summary | O1: Qdes | P1: =Templates!B24 -> 10 | Q1: Qfpd | R1: =Templates!D24 -> 0.2
A2: Element | B2: Description | C2: Yn | D2: Yc | E2: Profile | F2: Y | G2: V | H2: E | I2: Y | J2: V | K2: E | O2: Vdes | P2: =Templates!B25 -> 3.2 | Q2: Vfpd | R2: =Templates!D25 -> 1
A3: 1 | B3: D/S Channel | C3: 1.506168365 | D3: 1.165405154 | E3: Normal | F3: 1.506168365 | G3: 1.978135943 | H3: 1001.705688 | I3: 1.506168365 | J3: 1.978135943 | K3: 1001.205688 | O3: Ydes | P3: =Templates!B26 -> 1.3 | Q3: Yfpd | R3: =Templates!D26 -> 0.2
A4: 2 | B4: D/S Transition | C4: 0 | D4: 1.165405154 | E4: A2 | F4: 2.499576807 | G4: 0.9127930403 | H4: 1001.742065 | I4: 1.506217241 | J4: 1.978042006 | K4: 1001.70575
A5: 3 | B5: Culvert | C5: 2.299982786 | D5: 2.081232548 | E5: Normal-M2 | F5: 2.299982786 | G5: 3.641173363 | H5: 1002.546021 | I5: 2.081232548 | J5: 4.09990263 | K5: 1002.138367
A6: 4 | B6: U/S Transition | C6: 0.8306148052 | D6: 1.165405154 | E6: S1 | F6: 2.047858715 | G6: 1.246935248 | H6: 1002.697144 | I6: 3.091806412 | J6: 0.647901237 | K6: 1002.683228
A7: 5 | B7: U/S Channel | C7: 1.506168365 | D7: 1.165405154 | E7: M1 | F7: 1.705301285 | G7: 1.646217942 | H7: 1002.913513 | I7: 2.048095703 | J7: 1.246713161 | K7: 1002.697327

Sheet Profile
A1: Element | B1: Station | C1: X | D1: Y | E1: V | F1: Invert | G1: Crown | H1: WL | I1: EGL
B2: (m) | C2: (m) | D2: (m) | E2: (m/s) | F2: (m) | G2: (m) | H2: (m) | I2: (m)
A3: 1 | B3: 0 | C3: 0 | D3: 1.506168365 | E3: 1.978135943 | F3: 999.5 | G3: 1002.5 | H3: 1001.006165 | I3: 1001.205688
A4: 1 | B4: 2.631578922 | C4: 2.631578922 | D4: 1.506168365 | E4: 1.978135943 | F4: 999.5263062 | G4: 1002.526306 | H4: 1001.032471 | I4: 1001.231995
A5: 1 | B5: 5.263157845 | C5: 5.263157845 | D5: 1.506168365 | E5: 1.978135943 | F5: 999.5526123 | G5: 1002.552612 | H5: 1001.058777 | I5: 1001.258301
A6: 1 | B6: 7.894736767 | C6: 7.894736767 | D6: 1.506168365 | E6: 1.978135943 | F6: 999.5789185 | G6: 1002.578918 | H6: 1001.085144 | I6: 1001.284668
A7: 1 | B7: 10.52631569 | C7: 10.52631569 | D7: 1.506168365 | E7: 1.978135943 | F7: 999.6052856 | G7: 1002.605286 | H7: 1001.11145 | I7: 1001.310974
A8: 1 | B8: 13.15789509 | C8: 13.15789509 | D8: 1.506168365 | E8: 1.978135943 | F8: 999.6315918 | G8: 1002.631592 | H8: 1001.137756 | I8: 1001.33728
A9: 1 | B9: 15.78947353 | C9: 15.78947353 | D9: 1.506168365 | E9: 1.978135943 | F9: 999.6578979 | G9: 1002.657898 | H9: 1001.164062 | I9: 1001.363586
A10: 1 | B10: 18.42105293 | C10: 18.42105293 | D10: 1.506168365 | E10: 1.978135943 | F10: 999.6842041 | G10: 1002.684204 | H10: 1001.190369 | I10: 1001.389893
A11: 1 | B11: 21.05263138 | C11: 21.05263138 | D11: 1.506168365 | E11: 1.978135943 | F11: 999.7105103 | G11: 1002.71051 | H11: 1001.216675 | I11: 1001.416199
A12: 1 | B12: 23.68420982 | C12: 23.68420982 | D12: 1.506168365 | E12: 1.978135943 | F12: 999.7368164 | G12: 1002.736816 | H12: 1001.242981 | I12: 1001.442505
A13: 1 | B13: 26.31579018 | C13: 26.31579018 | D13: 1.506168365 | E13: 1.978135943 | F13: 999.7631836 | G13: 1002.763184 | H13: 1001.269348 | I13: 1001.468872
A14: 1 | B14: 28.94736862 | C14: 28.94736862 | D14: 1.506168365 | E14: 1.978135943 | F14: 999.7894897 | G14: 1002.78949 | H14: 1001.295654 | I14: 1001.495178
A15: 1 | B15: 31.57894707 | C15: 31.57894707 | D15: 1.506168365 | E15: 1.978135943 | F15: 999.8157959 | G15: 1002.815796 | H15: 1001.32196 | I15: 1001.521484
A16: 1 | B16: 34.21052551 | C16: 34.21052551 | D16: 1.506168365 | E16: 1.978135943 | F16: 999.8421021 | G16: 1002.842102 | H16: 1001.348267 | I16: 1001.547791
A17: 1 | B17: 36.84210587 | C17: 36.84210587 | D17: 1.506168365 | E17: 1.978135943 | F17: 999.8684082 | G17: 1002.868408 | H17: 1001.374573 | I17: 1001.574097
A18: 1 | B18: 39.4736824 | C18: 39.4736824 | D18: 1.506168365 | E18: 1.978135943 | F18: 999.8947144 | G18: 1002.894714 | H18: 1001.400879 | I18: 1001.600403
A19: 1 | B19: 42.10526276 | C19: 42.10526276 | D19: 1.506168365 | E19: 1.978135943 | F19: 999.9210815 | G19: 1002.921082 | H19: 1001.427246 | I19: 1001.62677
A20: 1 | B20: 44.73684311 | C20: 44.73684311 | D20: 1.506168365 | E20: 1.978135943 | F20: 999.9473877 | G20: 1002.947388 | H20: 1001.453552 | I20: 1001.653076
A21: 1 | B21: 47.36841965 | C21: 47.36841965 | D21: 1.506168365 | E21: 1.978135943 | F21: 999.9736938 | G21: 1002.973694 | H21: 1001.479858 | I21: 1001.679382
A22: 1 | B22: 50 | C22: 50 | D22: 1.506168365 | E22: 1.978135943 | F22: 1000 | G22: 1003 | H22: 1001.506165 | I22: 1001.705688
A23: 2 | B23: 50 | C23: 0 | D23: 1.506217241 | E23: 1.978042006 | F23: 1000 | G23: 1003 | H23: 1001.506226 | I23: 1001.70575
A24: 2 | B24: 50.5263176 | C24: 0.5263158083 | D24: 1.579264164 | E24: 1.84505713 | F24: 999.9578857 | G24: 1002.957886 | H24: 1001.53717 | I24: 1001.710754
A25: 2 | B25: 51.05263138 | C25: 1.052631617 | D25: 1.645279765 | E25: 1.736508846 | F25: 999.9157715 | G25: 1002.915771 | H25: 1001.561096 | I25: 1001.714844
A26: 2 | B26: 51.57894897 | C26: 1.578947425 | D26: 1.706607938 | E26: 1.644334197 | F26: 999.8736572 | G26: 1002.873657 | H26: 1001.580322 | I26: 1001.71814
A27: 2 | B27: 52.10526276 | C27: 2.105263233 | D27: 1.764811039 | E27: 1.563712716 | F27: 999.831604 | G27: 1002.831604 | H27: 1001.596375 | I27: 1001.721069
A28: 2 | B28: 52.63158035 | C28: 2.631578922 | D28: 1.820670366 | E28: 1.491971254 | F28: 999.7894897 | G28: 1002.78949 | H28: 1001.610168 | I28: 1001.723633
A29: 2 | B29: 53.15789413 | C29: 3.15789485 | D29: 1.874967217 | E29: 1.427016616 | F29: 999.7473755 | G29: 1002.747375 | H29: 1001.622314 | I29: 1001.726196
A30: 2 | B30: 53.68421173 | C30: 3.684210539 | D30: 1.927701592 | E30: 1.368033051 | F30: 999.7052612 | G30: 1002.705261 | H30: 1001.632996 | I30: 1001.728394
A31: 2 | B31: 54.21052551 | C31: 4.210526466 | D31: 1.978873491 | E31: 1.314329147 | F31: 999.663147 | G31: 1002.663147 | H31: 1001.642029 | I31: 1001.730103
A32: 2 | B32: 54.73684311 | C32: 4.736842155 | D32: 2.029264212 | E32: 1.264565825 | F32: 999.6210327 | G32: 1002.621033 | H32: 1001.65033 | I32: 1001.731873
A33: 2 | B33: 55.26315689 | C33: 5.263157845 | D33: 2.078873634 | E33: 1.218361378 | F33: 999.5789795 | G33: 1002.578979 | H33: 1001.657837 | I33: 1001.733521
A34: 2 | B34: 55.78947449 | C34: 5.789473534 | D34: 2.127701759 | E34: 1.175380707 | F34: 999.5368652 | G34: 1002.536865 | H34: 1001.664551 | I34: 1001.734985
A35: 2 | B35: 56.31578827 | C35: 6.3157897 | D35: 2.175748587 | E35: 1.135328293 | F35: 999.494751 | G35: 1002.494751 | H35: 1001.670471 | I35: 1001.736206
A36: 2 | B36: 56.84210587 | C36: 6.842105389 | D36: 2.223014116 | E36: 1.09794271 | F36: 999.4526367 | G36: 1002.452637 | H36: 1001.675659 | I36: 1001.737122
A37: 2 | B37: 57.36841965 | C37: 7.368421078 | D37: 2.270279646 | E37: 1.062419415 | F37: 999.4105225 | G37: 1002.410522 | H37: 1001.680786 | I37: 1001.738342
A38: 2 | B38: 57.89473724 | C38: 7.894736767 | D38: 2.316764116 | E38: 1.029178739 | F38: 999.3684082 | G38: 1002.368408 | H38: 1001.685181 | I38: 1001.739197
A39: 2 | B39: 58.42105103 | C39: 8.421052933 | D39: 2.363248587 | E39: 0.997510612 | F39: 999.326355 | G39: 1002.326355 | H39: 1001.689575 | I39: 1001.740295
A40: 2 | B40: 58.94736862 | C40: 8.947368622 | D40: 2.408951759 | E40: 0.9678109288 | F40: 999.2842407 | G40: 1002.284241 | H40: 1001.693176 | I40: 1001.740906
A41: 2 | B41: 59.47368622 | C41: 9.473684311 | D41: 2.454654932 | E41: 0.9394475222 | F41: 999.2421265 | G41: 1002.242126 | H41: 1001.696777 | I41: 1001.74176
A42: 2 | B42: 60 | C42: 10 | D42: 2.499576807 | E42: 0.9127930403 | F42: 999.2000122 | G42: 1002.200012 | H42: 1001.699585 | I42: 1001.742065
A43: 3 | B43: 60 | C43: 0 | D43: 2.081232548 | E43: 4.09990263 | F43: 999.2000122 | G43: 1002.799988 | H43: 1001.28125 | I43: 1002.138367
A44: 3 | B44: 61.94736862 | C44: 1.947368383 | D44: 2.160273075 | E44: 3.919924736 | F44: 999.2194824 | G44: 1002.819458 | H44: 1001.379761 | I44: 1002.163269
A45: 3 | B45: 63.89473724 | C45: 3.894736767 | D45: 2.18401289 | E45: 3.869196653 | F45: 999.2389526 | G45: 1002.838989 | H45: 1001.422974 | I45: 1002.18634
A46: 3 | B46: 65.84210205 | C46: 5.842105389 | D46: 2.200774193 | E46: 3.834250689 | F46: 999.2584229 | G46: 1002.858459 | H46: 1001.459229 | I46: 1002.208801
A47: 3 | B47: 67.78947449 | C47: 7.789473534 | D47: 2.213562965 | E47: 3.808058739 | F47: 999.2778931 | G47: 1002.87793 | H47: 1001.491455 | I47: 1002.230896
A48: 3 | B48: 69.73683929 | C48: 9.736842155 | D48: 2.223352909 | E48: 3.788279057 | F48: 999.2973633 | G48: 1002.8974 | H48: 1001.520752 | I48: 1002.252502
A49: 3 | B49: 71.68421173 | C49: 11.68421078 | D49: 2.231434822 | E49: 3.77212429 | F49: 999.3168335 | G49: 1002.91687 | H49: 1001.548279 | I49: 1002.273804
A50: 3 | B50: 73.63157654 | C50: 13.6315794 | D50: 2.238664389 | E50: 3.757804871 | F50: 999.3363037 | G50: 1002.93634 | H50: 1001.575012 | I50: 1002.295044
A51: 3 | B51: 75.57894897 | C51: 15.57894707 | D51: 2.24489212 | E51: 3.745568514 | F51: 999.3557739 | G51: 1002.955811 | H51: 1001.600708 | I51: 1002.31604
A52: 3 | B52: 77.52631378 | C52: 17.52631569 | D52: 2.250487328 | E52: 3.734652042 | F52: 999.3752441 | G52: 1002.975281 | H52: 1001.625732 | I52: 1002.336914
A53: 3 | B53: 79.47368622 | C53: 19.47368431 | D53: 2.254740715 | E53: 3.726402044 | F53: 999.3947754 | G53: 1002.994751 | H53: 1001.649475 | I53: 1002.357544
A54: 3 | B54: 81.42105103 | C54: 21.42105293 | D54: 2.258628845 | E54: 3.718896866 | F54: 999.4142456 | G54: 1003.014221 | H54: 1001.672852 | I54: 1002.378052
A55: 3 | B55: 83.36842346 | C55: 23.36842155 | D55: 2.262182951 | E55: 3.71206665 | F55: 999.4337158 | G55: 1003.033691 | H55: 1001.695862 | I55: 1002.398499
A56: 3 | B56: 85.31578827 | C56: 25.31579018 | D56: 2.265431404 | E56: 3.705849409 | F56: 999.453186 | G56: 1003.053162 | H56: 1001.718628 | I56: 1002.418823
A57: 3 | B57: 87.26316071 | C57: 27.2631588 | D57: 2.268400669 | E57: 3.700186968 | F57: 999.4726562 | G57: 1003.072632 | H57: 1001.741028 | I57: 1002.439148
A58: 3 | B58: 89.21052551 | C58: 29.21052551 | D58: 2.270867825 | E58: 3.695497036 | F58: 999.4921265 | G58: 1003.092102 | H58: 1001.763 | I58: 1002.459351
A59: 3 | B59: 91.15789795 | C59: 31.15789413 | D59: 2.273142338 | E59: 3.691185713 | F59: 999.5115967 | G59: 1003.111572 | H59: 1001.784729 | I59: 1002.479431
A60: 3 | B60: 93.10526276 | C60: 33.10526276 | D60: 2.275239229 | E60: 3.687221289 | F60: 999.5310669 | G60: 1003.131042 | H60: 1001.806274 | I60: 1002.499512
A61: 3 | B61: 95.05262756 | C61: 35.05263138 | D61: 2.277172565 | E61: 3.683574915 | F61: 999.5505371 | G61: 1003.150513 | H61: 1001.827698 | I61: 1002.519592
A62: 3 | B62: 97 | C62: 37 | D62: 2.299982786 | E62: 3.641173363 | F62: 999.5700073 | G62: 1003.169983 | H62: 1001.869995 | I62: 1002.546021
A63: 4 | B63: 97 | C63: 0 | D63: 3.091806412 | E63: 0.647901237 | F63: 999.5700073 | G63: 1002.570007 | H63: 1002.661804 | I63: 1002.683228
A64: 4 | B64: 97.52631378 | C64: 0.5263158083 | D64: 3.038661242 | E64: 0.6662540436 | F64: 999.6226196 | G64: 1002.62262 | H64: 1002.661316 | I64: 1002.68396
A65: 4 | B65: 98.05263519 | C65: 1.052631617 | D65: 2.985152721 | E65: 0.6858028769 | F65: 999.675293 | G65: 1002.675293 | H65: 1002.6604 | I65: 1002.684387
A66: 4 | B66: 98.57894897 | C66: 1.578947425 | D66: 2.931395531 | E66: 0.7064129114 | F66: 999.7279053 | G66: 1002.727905 | H66: 1002.659302 | I66: 1002.684753
A67: 4 | B67: 99.10526276 | C67: 2.105263233 | D67: 2.877501965 | E67: 0.7280393839 | F67: 999.7805176 | G67: 1002.780518 | H67: 1002.65802 | I67: 1002.685059
A68: 4 | B68: 99.63157654 | C68: 2.631578922 | D68: 2.82358098 | E68: 0.7507051826 | F68: 999.8331909 | G68: 1002.833191 | H68: 1002.656738 | I68: 1002.685486
A69: 4 | B69: 100.1578979 | C69: 3.15789485 | D69: 2.769738674 | E69: 0.7744315863 | F69: 999.8858032 | G69: 1002.885803 | H69: 1002.655518 | I69: 1002.686096
A70: 4 | B70: 100.6842117 | C70: 3.684210539 | D70: 2.715294838 | E70: 0.7996087074 | F70: 999.9384155 | G70: 1002.938416 | H70: 1002.653748 | I70: 1002.68634
A71: 4 | B71: 101.2105255 | C71: 4.210526466 | D71: 2.661185026 | E71: 0.8258932829 | F71: 999.9910889 | G71: 1002.991089 | H71: 1002.652222 | I71: 1002.687012
A72: 4 | B72: 101.7368393 | C72: 4.736842155 | D72: 2.6067729 | E72: 0.853681922 | F72: 1000.043701 | G72: 1003.043701 | H72: 1002.650452 | I72: 1002.687622
A73: 4 | B73: 102.2631607 | C73: 5.263157845 | D73: 2.552228928 | E73: 0.8830011487 | F73: 1000.096313 | G73: 1003.096313 | H73: 1002.64856 | I73: 1002.688293
A74: 4 | B74: 102.7894745 | C74: 5.789473534 | D74: 2.497040272 | E74: 0.9142670631 | F74: 1000.148926 | G74: 1003.148926 | H74: 1002.645996 | I74: 1002.688599
A75: 4 | B75: 103.3157883 | C75: 6.3157897 | D75: 2.442097187 | E75: 0.9471124411 | F75: 1000.201599 | G75: 1003.201599 | H75: 1002.643677 | I75: 1002.689392
A76: 4 | B76: 103.8421021 | C76: 6.842105389 | D76: 2.386927605 | E76: 0.9819511175 | F76: 1000.254211 | G76: 1003.254211 | H76: 1002.641174 | I76: 1002.690308
A77: 4 | B77: 104.3684235 | C77: 7.368421078 | D77: 2.33115983 | E77: 1.019208193 | F77: 1000.306824 | G77: 1003.306824 | H77: 1002.638 | I77: 1002.690979
A78: 4 | B78: 104.8947372 | C78: 7.894736767 | D78: 2.275092125 | E78: 1.058902025 | F78: 1000.359497 | G78: 1003.359497 | H78: 1002.634583 | I78: 1002.691772
A79: 4 | B79: 105.421051 | C79: 8.421052933 | D79: 2.219011784 | E79: 1.101034522 | F79: 1000.412109 | G79: 1003.412109 | H79: 1002.631104 | I79: 1002.692932
A80: 4 | B80: 105.9473724 | C80: 8.947368622 | D80: 2.16216445 | E80: 1.146436214 | F80: 1000.464722 | G80: 1003.464722 | H80: 1002.626892 | I80: 1002.693909
A81: 4 | B81: 106.4736862 | C81: 9.473684311 | D81: 2.105220556 | E81: 1.194874167 | F81: 1000.517395 | G81: 1003.517395 | H81: 1002.62262 | I81: 1002.695374
A82: 4 | B82: 107 | C82: 10 | D82: 2.047858715 | E82: 1.246935248 | F82: 1000.570007 | G82: 1003.570007 | H82: 1002.617859 | I82: 1002.697144
A83: 5 | B83: 107 | C83: 0 | D83: 2.048095703 | E83: 1.246713161 | F83: 1000.570007 | G83: 1003.570007 | H83: 1002.618103 | I83: 1002.697327
A84: 5 | B84: 109.6315765 | C84: 2.631578922 | D84: 2.026661873 | E84: 1.267063975 | F84: 1000.596313 | G84: 1003.596313 | H84: 1002.622986 | I84: 1002.704834
A85: 5 | B85: 112.2631607 | C85: 5.263157845 | D85: 2.005567551 | E85: 1.287598014 | F85: 1000.62262 | G85: 1003.62262 | H85: 1002.628235 | I85: 1002.712769
A86: 5 | B86: 114.8947372 | C86: 7.894736767 | D86: 1.98459661 | E86: 1.308526278 | F86: 1000.648926 | G86: 1003.648926 | H86: 1002.633545 | I86: 1002.720886
A87: 5 | B87: 117.5263138 | C87: 10.52631569 | D87: 1.964506388 | E87: 1.32907331 | F87: 1000.675293 | G87: 1003.675293 | H87: 1002.639771 | I87: 1002.729858
A88: 5 | B88: 120.1578979 | C88: 13.15789509 | D88: 1.944364548 | E88: 1.350178599 | F88: 1000.701599 | G88: 1003.701599 | H88: 1002.645935 | I88: 1002.738892
A89: 5 | B89: 122.7894745 | C89: 15.78947353 | D89: 1.924252033 | E89: 1.37177515 | F89: 1000.727905 | G89: 1003.727905 | H89: 1002.652161 | I89: 1002.748108
A90: 5 | B90: 125.421051 | C90: 18.42105293 | D90: 1.905062675 | E90: 1.39288342 | F90: 1000.754211 | G90: 1003.754211 | H90: 1002.659302 | I90: 1002.758179
A91: 5 | B91: 128.0526276 | C91: 21.05263138 | D91: 1.885974884 | E91: 1.414383292 | F91: 1000.780518 | G91: 1003.780518 | H91: 1002.666504 | I91: 1002.768494
A92: 5 | B92: 130.6842041 | C92: 23.68420982 | D92: 1.867058754 | E92: 1.436201692 | F92: 1000.806824 | G92: 1003.806824 | H92: 1002.673889 | I92: 1002.779053
A93: 5 | B93: 133.3157959 | C93: 26.31579018 | D93: 1.849084616 | E93: 1.457420826 | F93: 1000.833191 | G93: 1003.833191 | H93: 1002.682251 | I93: 1002.790527
A94: 5 | B94: 135.9473724 | C94: 28.94736862 | D94: 1.831336021 | E94: 1.478854656 | F94: 1000.859497 | G94: 1003.859497 | H94: 1002.690796 | I94: 1002.802307
A95: 5 | B95: 138.578949 | C95: 31.57894707 | D95: 1.813870907 | E95: 1.500427842 | F95: 1000.885803 | G95: 1003.885803 | H95: 1002.699646 | I95: 1002.814453
A96: 5 | B96: 141.2105255 | C96: 34.21052551 | D96: 1.796742916 | E96: 1.52206254 | F96: 1000.912109 | G96: 1003.912109 | H96: 1002.708862 | I96: 1002.826965
A97: 5 | B97: 143.8421021 | C97: 36.84210587 | D97: 1.780000687 | E97: 1.543682218 | F97: 1000.938416 | G97: 1003.938416 | H97: 1002.718445 | I97: 1002.839905
A98: 5 | B98: 146.4736786 | C98: 39.4736824 | D98: 1.763688445 | E98: 1.565209031 | F98: 1000.964722 | G98: 1003.964722 | H98: 1002.728455 | I98: 1002.853333
A99: 5 | B99: 149.1052551 | C99: 42.10526276 | D99: 1.748347759 | E99: 1.585882664 | F99: 1000.991089 | G99: 1003.991089 | H99: 1002.73938 | I99: 1002.867676
A100: 5 | B100: 151.7368469 | C100: 44.73684311 | D100: 1.73368454 | E100: 1.6060431 | F100: 1001.017395 | G100: 1004.017395 | H100: 1002.751038 | I100: 1002.882568
A101: 5 | B101: 154.3684235 | C101: 47.36841965 | D101: 1.719020367 | E101: 1.626606345 | F101: 1001.043701 | G101: 1004.043701 | H101: 1002.762695 | I101: 1002.897644
A102: 5 | B102: 157 | C102: 50 | D102: 1.705301285 | E102: 1.646217942 | F102: 1001.070007 | G102: 1004.070007 | H102: 1002.77533 | I102: 1002.913513

Sheet Plot Data (hidden)
A2: 0 | B2: 999.5 | D2: 0 | E2: 1000.665405 | G2: 0 | H2: 1001.006165 | J2: 0 | K2: 1002.5
A3: 50 | B3: 1000 | D3: 50 | E3: 1001.165405 | G3: 50 | H3: 1001.506165 | J3: 50 | K3: 1003
A4: 50 | B4: 1000 | D4: 50 | G4: 50 | J4: 50
A5: 60 | B5: 999.2000122 | D5: 50 | E5: 1001.165405 | G5: 50 | H5: 1000 | J5: 50 | K5: 1003
A6: 60 | B6: 999.2000122 | D6: 60 | E6: 1000.365417 | G6: 60 | H6: 999.2000122 | J6: 60 | K6: 1002.200012
A7: 97 | B7: 999.5700073 | D7: 60 | G7: 60 | J7: 60
A8: 97 | B8: 1003.169983 | D8: 60 | E8: 1001.28125 | G8: 60 | H8: 1001.5
A9: 60 | B9: 1002.799988 | D9: 97 | E9: 1001.651245 | G9: 97 | H9: 1001.869995
A10: 60 | B10: 999.2000122 | D10: 97 | G10: 97
A11: 97 | B11: 999.5700073 | D11: 97 | E11: 1000.735413 | G11: 97 | H11: 1000.400635 | J11: 97 | K11: 1002.570007
A12: 97 | B12: 999.5700073 | D12: 107 | E12: 1001.735413 | G12: 107 | H12: 1001.400635 | J12: 107 | K12: 1003.570007
A13: 107 | B13: 1000.570007 | D13: 107 | G13: 107 | J13: 107
A14: 107 | B14: 1000.570007 | D14: 107 | E14: 1001.735413 | G14: 107 | H14: 1002.076172 | J14: 107 | K14: 1003.570007
A15: 157 | B15: 1001.070007 | D15: 157 | E15: 1002.235413 | G15: 157 | H15: 1002.576172 | J15: 157 | K15: 1004.070007
D16: 157 | G16: 157 | J16: 157

Sheet Temp (hidden)
A1: X | B1: Y | C1: V | D1: STA | E1: E | F1: WL | G1: X | H1: Y | I1: V | J1: STA | K1: E | L1: WL
A2: 0 | B2: 1.506168365 | C2: 1.978135943 | D2: 0 | E2: 1001.205688 | F2: 1001.006165 | G2: 0 | H2: 0 | I2: 0 | J2: 0 | K2: 0 | L2: 999.5
A3: 2.631578922 | B3: 1.506168365 | C3: 1.978135943 | D3: 2.631578922 | E3: 1001.231995 | F3: 1001.032471 | G3: 0 | H3: 0 | I3: 0 | J3: 0 | K3: 0 | L3: 999.5
A4: 5.263157845 | B4: 1.506168365 | C4: 1.978135943 | D4: 5.263157845 | E4: 1001.258301 | F4: 1001.058777 | G4: 0 | H4: 0 | I4: 0 | J4: 0 | K4: 0 | L4: 999.5
A5: 7.894736767 | B5: 1.506168365 | C5: 1.978135943 | D5: 7.894736767 | E5: 1001.284668 | F5: 1001.085144 | G5: 0 | H5: 0 | I5: 0 | J5: 0 | K5: 0 | L5: 999.5
A6: 10.52631569 | B6: 1.506168365 | C6: 1.978135943 | D6: 10.52631569 | E6: 1001.310974 | F6: 1001.11145 | G6: 0 | H6: 0 | I6: 0 | J6: 0 | K6: 0 | L6: 999.5
A7: 13.15789509 | B7: 1.506168365 | C7: 1.978135943 | D7: 13.15789509 | E7: 1001.33728 | F7: 1001.137756 | G7: 0 | H7: 0 | I7: 0 | J7: 0 | K7: 0 | L7: 999.5
A8: 15.78947353 | B8: 1.506168365 | C8: 1.978135943 | D8: 15.78947353 | E8: 1001.363586 | F8: 1001.164062 | G8: 0 | H8: 0 | I8: 0 | J8: 0 | K8: 0 | L8: 999.5
A9: 18.42105293 | B9: 1.506168365 | C9: 1.978135943 | D9: 18.42105293 | E9: 1001.389893 | F9: 1001.190369 | G9: 0 | H9: 0 | I9: 0 | J9: 0 | K9: 0 | L9: 999.5
A10: 21.05263138 | B10: 1.506168365 | C10: 1.978135943 | D10: 21.05263138 | E10: 1001.416199 | F10: 1001.216675 | G10: 0 | H10: 0 | I10: 0 | J10: 0 | K10: 0 | L10: 999.5
A11: 23.68420982 | B11: 1.506168365 | C11: 1.978135943 | D11: 23.68420982 | E11: 1001.442505 | F11: 1001.242981 | G11: 0 | H11: 0 | I11: 0 | J11: 0 | K11: 0 | L11: 999.5
A12: 26.31579018 | B12: 1.506168365 | C12: 1.978135943 | D12: 26.31579018 | E12: 1001.468872 | F12: 1001.269348 | G12: 0 | H12: 0 | I12: 0 | J12: 0 | K12: 0 | L12: 999.5
A13: 28.94736862 | B13: 1.506168365 | C13: 1.978135943 | D13: 28.94736862 | E13: 1001.495178 | F13: 1001.295654 | G13: 0 | H13: 0 | I13: 0 | J13: 0 | K13: 0 | L13: 999.5
A14: 31.57894707 | B14: 1.506168365 | C14: 1.978135943 | D14: 31.57894707 | E14: 1001.521484 | F14: 1001.32196 | G14: 0 | H14: 0 | I14: 0 | J14: 0 | K14: 0 | L14: 999.5
A15: 34.21052551 | B15: 1.506168365 | C15: 1.978135943 | D15: 34.21052551 | E15: 1001.547791 | F15: 1001.348267 | G15: 0 | H15: 0 | I15: 0 | J15: 0 | K15: 0 | L15: 999.5
A16: 36.84210587 | B16: 1.506168365 | C16: 1.978135943 | D16: 36.84210587 | E16: 1001.574097 | F16: 1001.374573 | G16: 0 | H16: 0 | I16: 0 | J16: 0 | K16: 0 | L16: 999.5
A17: 39.4736824 | B17: 1.506168365 | C17: 1.978135943 | D17: 39.4736824 | E17: 1001.600403 | F17: 1001.400879 | G17: 0 | H17: 0 | I17: 0 | J17: 0 | K17: 0 | L17: 999.5
A18: 42.10526276 | B18: 1.506168365 | C18: 1.978135943 | D18: 42.10526276 | E18: 1001.62677 | F18: 1001.427246 | G18: 0 | H18: 0 | I18: 0 | J18: 0 | K18: 0 | L18: 999.5
A19: 44.73684311 | B19: 1.506168365 | C19: 1.978135943 | D19: 44.73684311 | E19: 1001.653076 | F19: 1001.453552 | G19: 0 | H19: 0 | I19: 0 | J19: 0 | K19: 0 | L19: 999.5
A20: 47.36841965 | B20: 1.506168365 | C20: 1.978135943 | D20: 47.36841965 | E20: 1001.679382 | F20: 1001.479858 | G20: 0 | H20: 0 | I20: 0 | J20: 0 | K20: 0 | L20: 999.5
A21: 50 | B21: 1.506168365 | C21: 1.978135943 | D21: 50 | E21: 1001.705688 | F21: 1001.506165 | G21: 0 | H21: 0 | I21: 0 | J21: 0 | K21: 0 | L21: 999.5
A22: 0 | B22: 1.506217241 | C22: 1.978042006 | D22: 50 | E22: 1001.70575 | F22: 1001.506226 | G22: 0 | H22: 0 | I22: 0 | J22: 50 | K22: 0 | L22: 1000
A23: 0.5263158083 | B23: 1.579264164 | C23: 1.84505713 | D23: 50.5263176 | E23: 1001.710754 | F23: 1001.53717 | G23: 0 | H23: 0 | I23: 0 | J23: 50 | K23: 0 | L23: 1000
A24: 1.052631617 | B24: 1.645279765 | C24: 1.736508846 | D24: 51.05263138 | E24: 1001.714844 | F24: 1001.561096 | G24: 0 | H24: 0 | I24: 0 | J24: 50 | K24: 0 | L24: 1000
A25: 1.578947425 | B25: 1.706607938 | C25: 1.644334197 | D25: 51.57894897 | E25: 1001.71814 | F25: 1001.580322 | G25: 0 | H25: 0 | I25: 0 | J25: 50 | K25: 0 | L25: 1000
A26: 2.105263233 | B26: 1.764811039 | C26: 1.563712716 | D26: 52.10526276 | E26: 1001.721069 | F26: 1001.596375 | G26: 0 | H26: 0 | I26: 0 | J26: 50 | K26: 0 | L26: 1000
A27: 2.631578922 | B27: 1.820670366 | C27: 1.491971254 | D27: 52.63158035 | E27: 1001.723633 | F27: 1001.610168 | G27: 0 | H27: 0 | I27: 0 | J27: 50 | K27: 0 | L27: 1000
A28: 3.157894611 | B28: 1.874967217 | C28: 1.427016616 | D28: 53.15789413 | E28: 1001.726196 | F28: 1001.622314 | G28: 0 | H28: 0 | I28: 0 | J28: 50 | K28: 0 | L28: 1000
A29: 3.6842103 | B29: 1.927701592 | C29: 1.368033051 | D29: 53.68421173 | E29: 1001.728394 | F29: 1001.632996 | G29: 0 | H29: 0 | I29: 0 | J29: 50 | K29: 0 | L29: 1000
A30: 4.21052599 | B30: 1.978873491 | C30: 1.314329147 | D30: 54.21052551 | E30: 1001.730103 | F30: 1001.642029 | G30: 0 | H30: 0 | I30: 0 | J30: 50 | K30: 0 | L30: 1000
A31: 4.736841679 | B31: 2.029264212 | C31: 1.264565825 | D31: 54.73684311 | E31: 1001.731873 | F31: 1001.65033 | G31: 0 | H31: 0 | I31: 0 | J31: 50 | K31: 0 | L31: 1000
A32: 5.263157368 | B32: 2.078873634 | C32: 1.218361378 | D32: 55.26315689 | E32: 1001.733521 | F32: 1001.657837 | G32: 0 | H32: 0 | I32: 0 | J32: 50 | K32: 0 | L32: 1000
A33: 5.789473057 | B33: 2.127701759 | C33: 1.175380707 | D33: 55.78947449 | E33: 1001.734985 | F33: 1001.664551 | G33: 0 | H33: 0 | I33: 0 | J33: 50 | K33: 0 | L33: 1000
A34: 6.315788746 | B34: 2.175748587 | C34: 1.135328293 | D34: 56.31578827 | E34: 1001.736206 | F34: 1001.670471 | G34: 0 | H34: 0 | I34: 0 | J34: 50 | K34: 0 | L34: 1000
A35: 6.842104435 | B35: 2.223014116 | C35: 1.09794271 | D35: 56.84210587 | E35: 1001.737122 | F35: 1001.675659 | G35: 0 | H35: 0 | I35: 0 | J35: 50 | K35: 0 | L35: 1000
A36: 7.368420124 | B36: 2.270279646 | C36: 1.062419415 | D36: 57.36841965 | E36: 1001.738342 | F36: 1001.680786 | G36: 0 | H36: 0 | I36: 0 | J36: 50 | K36: 0 | L36: 1000
A37: 7.894735813 | B37: 2.316764116 | C37: 1.029178739 | D37: 57.89473724 | E37: 1001.739197 | F37: 1001.685181 | G37: 0 | H37: 0 | I37: 0 | J37: 50 | K37: 0 | L37: 1000
A38: 8.421051979 | B38: 2.363248587 | C38: 0.997510612 | D38: 58.42105103 | E38: 1001.740295 | F38: 1001.689575 | G38: 0 | H38: 0 | I38: 0 | J38: 50 | K38: 0 | L38: 1000
A39: 8.947367668 | B39: 2.408951759 | C39: 0.9678109288 | D39: 58.94736862 | E39: 1001.740906 | F39: 1001.693176 | G39: 0 | H39: 0 | I39: 0 | J39: 50 | K39: 0 | L39: 1000
A40: 9.473683357 | B40: 2.454654932 | C40: 0.9394475222 | D40: 59.4736824 | E40: 1001.74176 | F40: 1001.696777 | G40: 0 | H40: 0 | I40: 0 | J40: 50 | K40: 0 | L40: 1000
A41: 9.999999046 | B41: 2.499576807 | C41: 0.9127930403 | D41: 60 | E41: 1001.742065 | F41: 1001.699585 | G41: 0 | H41: 0 | I41: 0 | J41: 50 | K41: 0 | L41: 1000
A42: 0 | B42: 2.081232548 | C42: 4.09990263 | D42: 60 | E42: 1002.138367 | F42: 1001.28125 | G42: 0 | H42: 0 | I42: 0 | J42: 60 | K42: 0 | L42: 999.2000122
A43: 1.947368383 | B43: 2.160273075 | C43: 3.919924736 | D43: 61.94736862 | E43: 1002.163269 | F43: 1001.379761 | G43: 0 | H43: 0 | I43: 0 | J43: 60 | K43: 0 | L43: 999.2000122
A44: 3.894736767 | B44: 2.18401289 | C44: 3.869196653 | D44: 63.89473724 | E44: 1002.18634 | F44: 1001.422974 | G44: 0 | H44: 0 | I44: 0 | J44: 60 | K44: 0 | L44: 999.2000122
A45: 5.842104912 | B45: 2.200774193 | C45: 3.834250689 | D45: 65.84210205 | E45: 1002.208801 | F45: 1001.459229 | G45: 0 | H45: 0 | I45: 0 | J45: 60 | K45: 0 | L45: 999.2000122
A46: 7.789473534 | B46: 2.213562965 | C46: 3.808058739 | D46: 67.78947449 | E46: 1002.230896 | F46: 1001.491455 | G46: 0 | H46: 0 | I46: 0 | J46: 60 | K46: 0 | L46: 999.2000122
A47: 9.736842155 | B47: 2.223352909 | C47: 3.788279057 | D47: 69.73683929 | E47: 1002.252502 | F47: 1001.520752 | G47: 0 | H47: 0 | I47: 0 | J47: 60 | K47: 0 | L47: 999.2000122
A48: 11.68421078 | B48: 2.231434822 | C48: 3.77212429 | D48: 71.68421173 | E48: 1002.273804 | F48: 1001.548279 | G48: 0 | H48: 0 | I48: 0 | J48: 60 | K48: 0 | L48: 999.2000122
A49: 13.6315794 | B49: 2.238664389 | C49: 3.757804871 | D49: 73.63157654 | E49: 1002.295044 | F49: 1001.575012 | G49: 0 | H49: 0 | I49: 0 | J49: 60 | K49: 0 | L49: 999.2000122
A50: 15.57894802 | B50: 2.24489212 | C50: 3.745568514 | D50: 75.57894897 | E50: 1002.31604 | F50: 1001.600708 | G50: 0 | H50: 0 | I50: 0 | J50: 60 | K50: 0 | L50: 999.2000122
A51: 17.52631569 | B51: 2.250487328 | C51: 3.734652042 | D51: 77.52631378 | E51: 1002.336914 | F51: 1001.625732 | G51: 0 | H51: 0 | I51: 0 | J51: 60 | K51: 0 | L51: 999.2000122
A52: 19.47368431 | B52: 2.254740715 | C52: 3.726402044 | D52: 79.47368622 | E52: 1002.357544 | F52: 1001.649475 | G52: 0 | H52: 0 | I52: 0 | J52: 60 | K52: 0 | L52: 999.2000122
A53: 21.42105293 | B53: 2.258628845 | C53: 3.718896866 | D53: 81.42105103 | E53: 1002.378052 | F53: 1001.672852 | G53: 0 | H53: 0 | I53: 0 | J53: 60 | K53: 0 | L53: 999.2000122
A54: 23.36842155 | B54: 2.262182951 | C54: 3.71206665 | D54: 83.36842346 | E54: 1002.398499 | F54: 1001.695862 | G54: 0 | H54: 0 | I54: 0 | J54: 60 | K54: 0 | L54: 999.2000122
A55: 25.31579018 | B55: 2.265431404 | C55: 3.705849409 | D55: 85.31578827 | E55: 1002.418823 | F55: 1001.718628 | G55: 0 | H55: 0 | I55: 0 | J55: 60 | K55: 0 | L55: 999.2000122
A56: 27.2631588 | B56: 2.268400669 | C56: 3.700186968 | D56: 87.26316071 | E56: 1002.439148 | F56: 1001.741028 | G56: 0 | H56: 0 | I56: 0 | J56: 60 | K56: 0 | L56: 999.2000122
A57: 29.21052742 | B57: 2.270867825 | C57: 3.695497036 | D57: 89.21052551 | E57: 1002.459351 | F57: 1001.763 | G57: 0 | H57: 0 | I57: 0 | J57: 60 | K57: 0 | L57: 999.2000122
A58: 31.15789604 | B58: 2.273142338 | C58: 3.691185713 | D58: 91.15789795 | E58: 1002.479431 | F58: 1001.784729 | G58: 0 | H58: 0 | I58: 0 | J58: 60 | K58: 0 | L58: 999.2000122
A59: 33.10526276 | B59: 2.275239229 | C59: 3.687221289 | D59: 93.10526276 | E59: 1002.499512 | F59: 1001.806274 | G59: 0 | H59: 0 | I59: 0 | J59: 60 | K59: 0 | L59: 999.2000122
A60: 35.05263138 | B60: 2.277172565 | C60: 3.683574915 | D60: 95.05262756 | E60: 1002.519592 | F60: 1001.827698 | G60: 0 | H60: 0 | I60: 0 | J60: 60 | K60: 0 | L60: 999.2000122
A61: 37 | B61: 2.299982786 | C61: 3.641173363 | D61: 97 | E61: 1002.546021 | F61: 1001.869995 | G61: 0 | H61: 0 | I61: 0 | J61: 60 | K61: 0 | L61: 999.2000122
A62: 0 | B62: 3.091806412 | C62: 0.647901237 | D62: 97 | E62: 1002.683228 | F62: 1002.661804 | G62: 0 | H62: 0.8480007648 | I62: 4.406301975 | J62: 97 | K62: 1001.407959 | L62: 1000.41803
A63: 0.5263158083 | B63: 3.038661242 | C63: 0.6662540436 | D63: 97.52631378 | E63: 1002.68396 | F63: 1002.661316 | G63: 0.5263158083 | H63: 0.8501359224 | I63: 4.391614914 | J63: 97.52631378 | K63: 1001.456177 | L63: 1000.472778
A64: 1.052631617 | B64: 2.985152721 | C64: 0.6858028769 | D64: 98.05263519 | E64: 1002.684387 | F64: 1002.6604 | G64: 1.052631617 | H64: 0.8525332212 | I64: 4.375219345 | J64: 98.05263519 | K64: 1001.503845 | L64: 1000.527832
A65: 1.578947425 | B65: 2.931395531 | C65: 0.7064129114 | D65: 98.57894897 | E65: 1002.684753 | F65: 1002.659302 | G65: 1.578947425 | H65: 0.855224967 | I65: 4.356928349 | J65: 98.57894897 | K65: 1001.551025 | L65: 1000.58313
A66: 2.105263233 | B66: 2.877501965 | C66: 0.7280393839 | D66: 99.10526276 | E66: 1002.685059 | F66: 1002.65802 | G66: 2.105263233 | H66: 0.8582472205 | I66: 4.336539268 | J66: 99.10526276 | K66: 1001.597656 | L66: 1000.638794
A67: 2.631578922 | B67: 2.82358098 | C67: 0.7507051826 | D67: 99.63157654 | E67: 1002.685486 | F67: 1002.656738 | G67: 2.631578922 | H67: 0.8616406918 | I67: 4.313830376 | J67: 99.63157654 | K67: 1001.643677 | L67: 1000.694824
A68: 3.157894611 | B68: 2.769738674 | C68: 0.7744315863 | D68: 100.1578979 | E68: 1002.686096 | F68: 1002.655518 | G68: 3.157894611 | H68: 0.8651479483 | I68: 4.290563107 | J68: 100.1578979 | K68: 1001.689575 | L68: 1000.750916
A69: 3.6842103 | B69: 2.715294838 | C69: 0.7996087074 | D69: 100.6842117 | E69: 1002.68634 | F69: 1002.653748 | G69: 3.6842103 | H69: 0.8697320223 | I69: 4.260457039 | J69: 100.6842117 | K69: 1001.733704 | L69: 1000.808167
A70: 4.21052599 | B70: 2.661185026 | C70: 0.8258932829 | D70: 101.2105255 | E70: 1002.687012 | F70: 1002.652222 | G70: 4.21052599 | H70: 0.8749246001 | I70: 4.226768494 | J70: 101.2105255 | K70: 1001.776917 | L70: 1000.865967
A71: 4.736841679 | B71: 2.6067729 | C71: 0.853681922 | D71: 101.7368393 | E71: 1002.687622 | F71: 1002.650452 | G71: 4.736841679 | H71: 0.8808064461 | I71: 4.189127445 | J71: 101.7368393 | K71: 1001.819275 | L71: 1000.9245
A72: 5.263157368 | B72: 2.552228928 | C72: 0.8830011487 | D72: 102.2631607 | E72: 1002.688293 | F72: 1002.64856 | G72: 5.263157368 | H72: 0.8874690533 | I72: 4.14714241 | J72: 102.2631607 | K72: 1001.860718 | L72: 1000.983765
A73: 5.789473057 | B73: 2.497040272 | C73: 0.9142670631 | D73: 102.7894745 | E73: 1002.688599 | F73: 1002.645996 | G73: 5.789473057 | H73: 0.8953022957 | I73: 4.098647594 | J73: 102.7894745 | K73: 1001.900818 | L73: 1001.04425
A74: 6.315788746 | B74: 2.442097187 | C74: 0.9471124411 | D74: 103.3157883 | E74: 1002.689392 | F74: 1002.643677 | G74: 6.315788746 | H74: 0.9042147994 | I74: 4.04458046 | J74: 103.3157883 | K74: 1001.939941 | L74: 1001.105774
A75: 6.842104435 | B75: 2.386927605 | C75: 0.9819511175 | D75: 103.8421021 | E75: 1002.690308 | F75: 1002.641174 | G75: 6.842104435 | H75: 0.9151062965 | I75: 3.980060339 | J75: 103.8421021 | K75: 1001.977051 | L75: 1001.169312
A76: 7.368420124 | B76: 2.33115983 | C76: 1.019208193 | D76: 104.3684235 | E76: 1002.690979 | F76: 1002.638 | G76: 7.368420124 | H76: 0.9276095629 | I76: 3.908022881 | J76: 104.3684235 | K76: 1002.013184 | L76: 1001.234436
A77: 7.894735813 | B77: 2.275092125 | C77: 1.058902025 | D77: 104.8947372 | E77: 1002.691772 | F77: 1002.634583 | G77: 7.894735813 | H77: 0.9429707527 | I77: 3.822365761 | J77: 104.8947372 | K77: 1002.047424 | L77: 1001.302429
A78: 8.421051979 | B78: 2.219011784 | C78: 1.101034522 | D78: 105.421051 | E78: 1002.692932 | F78: 1002.631104 | G78: 8.421051979 | H78: 0.9628590345 | I78: 3.715887547 | J78: 105.421051 | K78: 1002.079041 | L78: 1001.375
A79: 8.947367668 | B79: 2.16216445 | C79: 1.146436214 | D79: 105.9473648 | E79: 1002.693909 | F79: 1002.626892 | G79: 8.947367668 | H79: 0.9899302125 | I79: 3.578455687 | J79: 105.9473648 | K79: 1002.107605 | L79: 1001.454651
A80: 9.473683357 | B80: 2.105220556 | C80: 1.194874167 | D80: 106.4736862 | E80: 1002.695374 | F80: 1002.62262 | G80: 9.473683357 | H80: 1.031031251 | I80: 3.384878635 | J80: 106.4736862 | K80: 1002.132629 | L80: 1001.548401
A81: 9.999999046 | B81: 2.047858715 | C81: 1.246935248 | D81: 107 | E81: 1002.697144 | F81: 1002.617859 | G81: 9.999999046 | H81: 1.165405154 | I81: 2.856187582 | J81: 107 | K81: 1002.151367 | L81: 1001.735413
A82: 0 | B82: 2.048095703 | C82: 1.246713161 | D82: 107 | E82: 1002.697327 | F82: 1002.618103 | G82: 0 | H82: 0 | I82: 0 | J82: 107 | K82: 0 | L82: 1000.570007
A83: 2.631578922 | B83: 2.026661873 | C83: 1.267063975 | D83: 109.6315765 | E83: 1002.704834 | F83: 1002.622986 | G83: 0 | H83: 0 | I83: 0 | J83: 107 | K83: 0 | L83: 1000.570007
A84: 5.263157845 | B84: 2.005567551 | C84: 1.287598014 | D84: 112.2631607 | E84: 1002.712769 | F84: 1002.628235 | G84: 0 | H84: 0 | I84: 0 | J84: 107 | K84: 0 | L84: 1000.570007
A85: 7.894736767 | B85: 1.98459661 | C85: 1.308526278 | D85: 114.8947372 | E85: 1002.720886 | F85: 1002.633545 | G85: 0 | H85: 0 | I85: 0 | J85: 107 | K85: 0 | L85: 1000.570007
A86: 10.52631569 | B86: 1.964506388 | C86: 1.32907331 | D86: 117.5263138 | E86: 1002.729858 | F86: 1002.639771 | G86: 0 | H86: 0 | I86: 0 | J86: 107 | K86: 0 | L86: 1000.570007
A87: 13.15789413 | B87: 1.944364548 | C87: 1.350178599 | D87: 120.1578979 | E87: 1002.738892 | F87: 1002.645935 | G87: 0 | H87: 0 | I87: 0 | J87: 107 | K87: 0 | L87: 1000.570007
A88: 15.78947258 | B88: 1.924252033 | C88: 1.37177515 | D88: 122.7894745 | E88: 1002.748108 | F88: 1002.652161 | G88: 0 | H88: 0 | I88: 0 | J88: 107 | K88: 0 | L88: 1000.570007
A89: 18.42105103 | B89: 1.905062675 | C89: 1.39288342 | D89: 125.421051 | E89: 1002.758179 | F89: 1002.659302 | G89: 0 | H89: 0 | I89: 0 | J89: 107 | K89: 0 | L89: 1000.570007
A90: 21.05262947 | B90: 1.885974884 | C90: 1.414383292 | D90: 128.0526276 | E90: 1002.768494 | F90: 1002.666504 | G90: 0 | H90: 0 | I90: 0 | J90: 107 | K90: 0 | L90: 1000.570007
A91: 23.68420792 | B91: 1.867058754 | C91: 1.436201692 | D91: 130.6842041 | E91: 1002.779053 | F91: 1002.673889 | G91: 0 | H91: 0 | I91: 0 | J91: 107 | K91: 0 | L91: 1000.570007
A92: 26.31578636 | B92: 1.849084616 | C92: 1.457420826 | D92: 133.3157806 | E92: 1002.790527 | F92: 1002.682251 | G92: 0 | H92: 0 | I92: 0 | J92: 107 | K92: 0 | L92: 1000.570007
A93: 28.94736481 | B93: 1.831336021 | C93: 1.478854656 | D93: 135.9473572 | E93: 1002.802307 | F93: 1002.690796 | G93: 0 | H93: 0 | I93: 0 | J93: 107 | K93: 0 | L93: 1000.570007
A94: 31.57894325 | B94: 1.813870907 | C94: 1.500427842 | D94: 138.578949 | E94: 1002.814453 | F94: 1002.699646 | G94: 0 | H94: 0 | I94: 0 | J94: 107 | K94: 0 | L94: 1000.570007
A95: 34.2105217 | B95: 1.796742916 | C95: 1.52206254 | D95: 141.2105255 | E95: 1002.826965 | F95: 1002.708862 | G95: 0 | H95: 0 | I95: 0 | J95: 107 | K95: 0 | L95: 1000.570007
A96: 36.84210205 | B96: 1.780000687 | C96: 1.543682218 | D96: 143.8421021 | E96: 1002.839905 | F96: 1002.718445 | G96: 0 | H96: 0 | I96: 0 | J96: 107 | K96: 0 | L96: 1000.570007
A97: 39.4736824 | B97: 1.763688445 | C97: 1.565209031 | D97: 146.4736786 | E97: 1002.853333 | F97: 1002.728455 | G97: 0 | H97: 0 | I97: 0 | J97: 107 | K97: 0 | L97: 1000.570007
A98: 42.10526276 | B98: 1.748347759 | C98: 1.585882664 | D98: 149.1052551 | E98: 1002.867676 | F98: 1002.73938 | G98: 0 | H98: 0 | I98: 0 | J98: 107 | K98: 0 | L98: 1000.570007
A99: 44.73684311 | B99: 1.73368454 | C99: 1.6060431 | D99: 151.7368469 | E99: 1002.882568 | F99: 1002.751038 | G99: 0 | H99: 0 | I99: 0 | J99: 107 | K99: 0 | L99: 1000.570007
A100: 47.36842346 | B100: 1.719020367 | C100: 1.626606345 | D100: 154.3684235 | E100: 1002.897644 | F100: 1002.762695 | G100: 0 | H100: 0 | I100: 0 | J100: 107 | K100: 0 | L100: 1000.570007
A101: 50.00000381 | B101: 1.705301285 | C101: 1.646217942 | D101: 157 | E101: 1002.913513 | F101: 1002.77533 | G101: 0 | H101: 0 | I101: 0 | J101: 107 | K101: 0 | L101: 1000.570007
A102: 0 | B102: 3.612410545 | C102: 0.510222733 | D102: 137.1999969 | E102: 1003.925659 | F102: 1003.912415 | G102: 0 | H102: 1.150669217 | I102: 2.907501936 | J102: 137.1999969 | K102: 1001.881714 | L102: 1001.450684
A103: 1.052631617 | B103: 3.575669527 | C103: 0.5179909468 | D103: 138.2526245 | E103: 1003.926208 | F103: 1003.912476 | G103: 1.052631617 | H103: 1.150669217 | I103: 2.907501936 | J103: 138.2526245 | K103: 1001.918518 | L103: 1001.487488
A104: 2.105263233 | B104: 3.538891792 | C104: 0.5260075331 | D104: 139.3052673 | E104: 1003.926697 | F104: 1003.912537 | G104: 2.105263233 | H104: 1.150669217 | I104: 2.907501936 | J104: 139.3052673 | K104: 1001.955383 | L104: 1001.524353
A105: 3.15789485 | B105: 3.502095699 | C105: 0.5342803001 | D105: 140.3578949 | E105: 1003.927185 | F105: 1003.912598 | G105: 3.15789485 | H105: 1.150669217 | I105: 2.907501936 | J105: 140.3578949 | K105: 1001.992249 | L105: 1001.561157
A106: 4.210526466 | B106: 3.465299606 | C106: 0.542817533 | D106: 141.4105225 | E106: 1003.927673 | F106: 1003.912659 | G106: 4.210526466 | H106: 1.150669217 | I106: 2.907501936 | J106: 141.4105225 | K106: 1002.029053 | L106: 1001.598022
A107: 5.263157845 | B107: 3.428521633 | C107: 0.5516275167 | D107: 142.46315 | E107: 1003.928223 | F107: 1003.91272 | G107: 5.263157845 | H107: 1.150669217 | I107: 2.907501936 | J107: 142.46315 | K107: 1002.065918 | L107: 1001.634888
A108: 6.315789223 | B108: 3.391778946 | C108: 0.5607194304 | D108: 143.5157928 | E108: 1003.928833 | F108: 1003.912842 | G108: 6.315789223 | H108: 1.150669217 | I108: 2.907501936 | J108: 143.5157928 | K108: 1002.102783 | L108: 1001.671692
A109: 7.368420601 | B109: 3.35454607 | C109: 0.5702435374 | D109: 144.5684204 | E109: 1003.929016 | F109: 1003.912415 | G109: 7.368420601 | H109: 1.150669217 | I109: 2.907501936 | J109: 144.5684204 | K109: 1002.139587 | L109: 1001.708557
A110: 8.421051979 | B110: 3.317401171 | C110: 0.580072999 | D110: 145.621048 | E110: 1003.92926 | F110: 1003.912109 | G110: 8.421051979 | H110: 1.150669217 | I110: 2.907501936 | J110: 145.621048 | K110: 1002.176453 | L110: 1001.745422
A111: 9.473683357 | B111: 3.280361176 | C111: 0.5902181268 | D111: 146.6736755 | E111: 1003.929688 | F111: 1003.911926 | G111: 9.473683357 | H111: 1.150669217 | I111: 2.907501936 | J111: 146.6736755 | K111: 1002.213257 | L111: 1001.782227
A112: 10.52631474 | B112: 3.243442297 | C112: 0.6006894112 | D112: 147.7263184 | E112: 1003.930237 | F112: 1003.911865 | G112: 10.52631474 | H112: 1.150669217 | I112: 2.907501936 | J112: 147.7263184 | K112: 1002.250122 | L112: 1001.819092
A113: 11.57894611 | B113: 3.206153393 | C113: 0.6116496921 | D113: 148.7789459 | E113: 1003.930481 | F113: 1003.911438 | G113: 11.57894611 | H113: 1.150669217 | I113: 2.907501936 | J113: 148.7789459 | K113: 1002.286987 | L113: 1001.855957
A114: 12.63157749 | B114: 3.168786049 | C114: 0.623041749 | D114: 149.8315735 | E114: 1003.930664 | F114: 1003.910889 | G114: 12.63157749 | H114: 1.150669217 | I114: 2.907501936 | J114: 149.8315735 | K114: 1002.323792 | L114: 1001.892761
A115: 13.68420887 | B115: 3.132102966 | C115: 0.6346457005 | D115: 150.884201 | E115: 1003.93158 | F115: 1003.911072 | G115: 13.68420887 | H115: 1.150669217 | I115: 2.907501936 | J115: 150.884201 | K115: 1002.360657 | L115: 1001.929626
A116: 14.73684025 | B116: 3.095131397 | C116: 0.6467865705 | D116: 151.9368439 | E116: 1003.932251 | F116: 1003.910889 | G116: 14.73684025 | H116: 1.150669217 | I116: 2.907501936 | J116: 151.9368439 | K116: 1002.397522 | L116: 1001.966431
A117: 15.78947163 | B117: 3.057912827 | C117: 0.6594869494 | D117: 152.9894714 | E117: 1003.932739 | F117: 1003.910522 | G117: 15.78947163 | H117: 1.150669217 | I117: 2.907501936 | J117: 152.9894714 | K117: 1002.434326 | L117: 1002.003296
A118: 16.84210396 | B118: 3.020487785 | C118: 0.6727708578 | D118: 154.042099 | E118: 1003.933044 | F118: 1003.909973 | G118: 16.84210396 | H118: 1.150669217 | I118: 2.907501936 | J118: 154.042099 | K118: 1002.471191 | L118: 1002.040161
A119: 17.89473534 | B119: 2.983802795 | C119: 0.6863090992 | D119: 155.0947266 | E119: 1003.934143 | F119: 1003.910095 | G119: 17.89473534 | H119: 1.150669217 | I119: 2.907501936 | J119: 155.0947266 | K119: 1002.507996 | L119: 1002.076965
A120: 18.94736671 | B120: 2.946955204 | C120: 0.7003512383 | D120: 156.1473694 | E120: 1003.93512 | F120: 1003.910095 | G120: 18.94736671 | H120: 1.165405154 | I120: 2.856187582 | J120: 156.1473694 | K120: 1002.544495 | L120: 1002.12854
A121: 19.99999809 | B121: 2.909984589 | C121: 0.7148857713 | D121: 157.1999969 | E121: 1003.936035 | F121: 1003.909973 | G121: 19.99999809 | H121: 1.165405154 | I121: 2.856187582 | J121: 157.1999969 | K121: 1002.58136 | L121: 1002.165405
A122: 0 | B122: 3.926941872 | C122: 0.4521708488 | D122: 157.1999969 | E122: 1003.937378 | F122: 1003.926941 | G122: 0 | H122: 0 | I122: 0 | J122: 157.1999969 | K122: 0 | L122: 1000
A123: 0.5263158083 | B123: 3.921918392 | C123: 0.452993989 | D123: 157.7263184 | E123: 1003.937622 | F123: 1003.927185 | G123: 0 | H123: 0 | I123: 0 | J123: 157.1999969 | K123: 0 | L123: 1000
A124: 1.052631617 | B124: 3.916905165 | C124: 0.4538184702 | D124: 158.2526245 | E124: 1003.937927 | F124: 1003.927429 | G124: 0 | H124: 0 | I124: 0 | J124: 157.1999969 | K124: 0 | L124: 1000
A125: 1.578947425 | B125: 3.911902428 | C125: 0.4546442628 | D125: 158.7789459 | E125: 1003.938232 | F125: 1003.927673 | G125: 0 | H125: 0 | I125: 0 | J125: 157.1999969 | K125: 0 | L125: 1000
A126: 2.105263233 | B126: 3.906909943 | C126: 0.455471307 | D126: 159.3052673 | E126: 1003.938538 | F126: 1003.927979 | G126: 0 | H126: 0 | I126: 0 | J126: 157.1999969 | K126: 0 | L126: 1000
A127: 2.631578922 | B127: 3.901927948 | C127: 0.4562996328 | D127: 159.8315735 | E127: 1003.938843 | F127: 1003.928223 | G127: 0 | H127: 0 | I127: 0 | J127: 157.1999969 | K127: 0 | L127: 1000
A128: 3.157894611 | B128: 3.896956444 | C128: 0.45712924 | D128: 160.3578949 | E128: 1003.939209 | F128: 1003.928528 | G128: 0 | H128: 0 | I128: 0 | J128: 157.1999969 | K128: 0 | L128: 1000
A129: 3.6842103 | B129: 3.891994953 | C129: 0.4579601884 | D129: 160.884201 | E129: 1003.939514 | F129: 1003.928833 | G129: 0 | H129: 0 | I129: 0 | J129: 157.1999969 | K129: 0 | L129: 1000
A130: 4.21052599 | B130: 3.887043953 | C130: 0.4587923884 | D130: 161.4105225 | E130: 1003.93988 | F130: 1003.929138 | G130: 0 | H130: 0 | I130: 0 | J130: 157.1999969 | K130: 0 | L130: 1000
A131: 4.736841679 | B131: 3.882103205 | C131: 0.45962587 | D131: 161.9368439 | E131: 1003.940247 | F131: 1003.929443 | G131: 0 | H131: 0 | I131: 0 | J131: 157.1999969 | K131: 0 | L131: 1000
A132: 5.263157368 | B132: 3.876592636 | C132: 0.4605590701 | D132: 162.46315 | E132: 1003.940002 | F132: 1003.929199 | G132: 0 | H132: 0 | I132: 0 | J132: 157.1999969 | K132: 0 | L132: 1000
A133: 5.789473057 | B133: 3.871094704 | C133: 0.4614939392 | D133: 162.9894714 | E133: 1003.939819 | F133: 1003.928955 | G133: 0 | H133: 0 | I133: 0 | J133: 157.1999969 | K133: 0 | L133: 1000
A134: 6.315788746 | B134: 3.865609646 | C134: 0.4624303579 | D134: 163.5157928 | E134: 1003.939636 | F134: 1003.928772 | G134: 0 | H134: 0 | I134: 0 | J134: 157.1999969 | K134: 0 | L134: 1000
A135: 6.842104435 | B135: 3.860137463 | C135: 0.463368386 | D135: 164.042099 | E135: 1003.939514 | F135: 1003.928528 | G135: 0 | H135: 0 | I135: 0 | J135: 157.1999969 | K135: 0 | L135: 1000
A136: 7.368420124 | B136: 3.854677677 | C136: 0.4643081427 | D136: 164.5684204 | E136: 1003.939331 | F136: 1003.928345 | G136: 0 | H136: 0 | I136: 0 | J136: 157.1999969 | K136: 0 | L136: 1000
A137: 7.894735813 | B137: 3.849230766 | C137: 0.465249449 | D137: 165.0947266 | E137: 1003.939209 | F137: 1003.928162 | G137: 0 | H137: 0 | I137: 0 | J137: 157.1999969 | K137: 0 | L137: 1000
A138: 8.421051979 | B138: 3.843796253 | C138: 0.4661924541 | D138: 165.621048 | E138: 1003.939087 | F138: 1003.927979 | G138: 0 | H138: 0 | I138: 0 | J138: 157.1999969 | K138: 0 | L138: 1000
A139: 8.947367668 | B139: 3.838374376 | C139: 0.4671370387 | D139: 166.1473694 | E139: 1003.938965 | F139: 1003.927856 | G139: 0 | H139: 0 | I139: 0 | J139: 157.1999969 | K139: 0 | L139: 1000
A140: 9.473683357 | B140: 3.832965374 | C140: 0.4680832028 | D140: 166.6736755 | E140: 1003.938843 | F140: 1003.927673 | G140: 0 | H140: 0 | I140: 0 | J140: 157.1999969 | K140: 0 | L140: 1000
A141: 9.999999046 | B141: 3.827568769 | C141: 0.4690310359 | D141: 167.1999969 | E141: 1003.938782 | F141: 1003.927551 | G141: 0 | H141: 0 | I141: 0 | J141: 157.1999969 | K141: 0 | L141: 1000
A142: 0 | B142: 3.42344141 | C142: 0.5528670549 | D142: 167.1999969 | E142: 1003.939026 | F142: 1003.923462 | G142: 0 | H142: 0 | I142: 0 | J142: 167.1999969 | K142: 0 | L142: 1000.5
A143: 1.052631617 | B143: 3.397226095 | C143: 0.5593526363 | D143: 168.2526245 | E143: 1003.939514 | F143: 1003.923523 | G143: 0 | H143: 0 | I143: 0 | J143: 167.1999969 | K143: 0 | L143: 1000.5
A144: 2.105263233 | B144: 3.370804548 | C144: 0.5660451055 | D144: 169.3052673 | E144: 1003.939758 | F144: 1003.923462 | G144: 0 | H144: 0 | I144: 0 | J144: 167.1999969 | K144: 0 | L144: 1000.5
A145: 3.15789485 | B145: 3.344708443 | C145: 0.5728142262 | D145: 170.3578949 | E145: 1003.940369 | F145: 1003.923645 | G145: 0 | H145: 0 | I145: 0 | J145: 167.1999969 | K145: 0 | L145: 1000.5
A146: 4.210526466 | B146: 3.318423748 | C146: 0.579797864 | D146: 171.4105225 | E146: 1003.940857 | F146: 1003.923706 | G146: 0 | H146: 0 | I146: 0 | J146: 167.1999969 | K146: 0 | L146: 1000.5
A147: 5.263157845 | B147: 3.291965961 | C147: 0.5870016813 | D147: 172.46315 | E147: 1003.941101 | F147: 1003.923523 | G147: 0 | H147: 0 | I147: 0 | J147: 167.1999969 | K147: 0 | L147: 1000.5
A148: 6.315789223 | B148: 3.265598297 | C148: 0.594361186 | D148: 173.5157928 | E148: 1003.941528 | F148: 1003.923523 | G148: 0 | H148: 0 | I148: 0 | J148: 167.1999969 | K148: 0 | L148: 1000.5
A149: 7.368420601 | B149: 3.239572048 | C149: 0.6018086672 | D149: 174.5684204 | E149: 1003.942261 | F149: 1003.923767 | G149: 0 | H149: 0 | I149: 0 | J149: 167.1999969 | K149: 0 | L149: 1000.5
A150: 8.421051979 | B150: 3.212912798 | C150: 0.6096333265 | D150: 175.621048 | E150: 1003.942383 | F150: 1003.923462 | G150: 0 | H150: 0 | I150: 0 | J150: 167.1999969 | K150: 0 | L150: 1000.5
A151: 9.473683357 | B151: 3.186611652 | C151: 0.617554903 | D151: 176.6736755 | E151: 1003.942871 | F151: 1003.923462 | G151: 0 | H151: 0 | I151: 0 | J151: 167.1999969 | K151: 0 | L151: 1000.5
A152: 10.52631474 | B152: 3.160663843 | C152: 0.6255743504 | D152: 177.7263184 | E152: 1003.943787 | F152: 1003.923828 | G152: 0 | H152: 0 | I152: 0 | J152: 167.1999969 | K152: 0 | L152: 1000.5
A153: 11.57894611 | B153: 3.134133339 | C153: 0.6339921355 | D153: 178.7789459 | E153: 1003.944092 | F153: 1003.923584 | G153: 0 | H153: 0 | I153: 0 | J153: 167.1999969 | K153: 0 | L153: 1000.5
A154: 12.63157749 | B154: 3.107971907 | C154: 0.6425176263 | D154: 179.8315735 | E154: 1003.944824 | F154: 1003.923767 | G154: 0 | H154: 0 | I154: 0 | J154: 167.1999969 | K154: 0 | L154: 1000.5
A155: 13.68420887 | B155: 3.081269741 | C155: 0.6514590383 | D155: 180.884201 | E155: 1003.945007 | F155: 1003.923401 | G155: 0 | H155: 0 | I155: 0 | J155: 167.1999969 | K155: 0 | L155: 1000.5
A156: 14.73684025 | B156: 3.054951906 | C156: 0.6605187654 | D156: 181.9368439 | E156: 1003.945618 | F156: 1003.923401 | G156: 0 | H156: 0 | I156: 0 | J156: 167.1999969 | K156: 0 | L156: 1000.5
A157: 15.78947163 | B157: 3.029013157 | C157: 0.6696979403 | D157: 182.9894714 | E157: 1003.946594 | F157: 1003.923767 | G157: 0 | H157: 0 | I157: 0 | J157: 167.1999969 | K157: 0 | L157: 1000.5
A158: 16.84210396 | B158: 3.002581596 | C158: 0.6793177128 | D158: 184.042099 | E158: 1003.947144 | F158: 1003.923645 | G158: 0 | H158: 0 | I158: 0 | J158: 167.1999969 | K158: 0 | L158: 1000.5
A159: 17.89473534 | B159: 2.976543903 | C159: 0.6890412569 | D159: 185.0947266 | E159: 1003.94812 | F159: 1003.923889 | G159: 0 | H159: 0 | I159: 0 | J159: 167.1999969 | K159: 0 | L159: 1000.5
A160: 18.94736671 | B160: 2.950052738 | C160: 0.6991540194 | D160: 186.1473694 | E160: 1003.948669 | F160: 1003.923767 | G160: 0 | H160: 0 | I160: 0 | J160: 167.1999969 | K160: 0 | L160: 1000.5
A161: 19.99999809 | B161: 2.923968792 | C161: 0.7093343735 | D161: 187.1999969 | E161: 1003.949646 | F161: 1003.92395 | G161: 0 | H161: 0 | I161: 0 | J161: 167.1999969 | K161: 0 | L161: 1000.5
A162: 0 | B162: 2.924112082 | C162: 0.7092778087 | D162: 187.1999969 | E162: 1003.949768 | F162: 1003.924133 | G162: 0 | H162: 0.8737800717 | I162: 4.234156609 | J162: 187.1999969 | K162: 1002.787903 | L162: 1001.873779
A163: 0.5263158083 | B163: 2.870440722 | C163: 0.7309475541 | D163: 187.7263184 | E163: 1003.950317 | F163: 1003.923096 | G163: 0.5263158083 | H163: 0.8737800717 | I163: 4.234156609 | J163: 187.7263184 | K163: 1002.840576 | L163: 1001.926392
A164: 1.052631617 | B164: 2.816741943 | C164: 0.7536568046 | D164: 188.2526245 | E164: 1003.950989 | F164: 1003.921997 | G164: 1.052631617 | H164: 0.8737800717 | I164: 4.234156609 | J164: 188.2526245 | K164: 1002.893188 | L164: 1001.979065
A165: 1.578947425 | B165: 2.763121843 | C165: 0.7774262428 | D165: 188.7789459 | E165: 1003.951843 | F165: 1003.921021 | G165: 1.578947425 | H165: 0.8737800717 | I165: 4.234156609 | J165: 188.7789459 | K165: 1002.945801 | L165: 1002.031677
A166: 2.105263233 | B166: 2.708902836 | C166: 0.8026464581 | D166: 189.3052673 | E166: 1003.952271 | F166: 1003.919434 | G166: 2.105263233 | H166: 0.8892940283 | I166: 4.135761261 | J166: 189.3052673 | K166: 1002.971985 | L166: 1002.099792
A167: 2.631578922 | B167: 2.655015945 | C167: 0.8289737105 | D167: 189.8315735 | E167: 1003.953186 | F167: 1003.918152 | G167: 2.631578922 | H167: 0.8918326497 | I167: 4.120013714 | J167: 189.8315735 | K167: 1003.020508 | L167: 1002.154968
A168: 3.157894611 | B168: 2.600828409 | C168: 0.8568043113 | D168: 190.3578949 | E168: 1003.954041 | F168: 1003.916626 | G168: 3.157894611 | H168: 0.8947867155 | I168: 4.101811409 | J168: 190.3578949 | K168: 1003.068481 | L168: 1002.210571
A169: 3.6842103 | B169: 2.546509743 | C169: 0.886164546 | D169: 190.884201 | E169: 1003.954956 | F169: 1003.914917 | G169: 3.6842103 | H169: 0.8982241154 | I169: 4.080793858 | J169: 190.884201 | K169: 1003.115784 | L169: 1002.266663
A170: 4.21052599 | B170: 2.491549015 | C170: 0.917470634 | D170: 191.4105225 | E170: 1003.955505 | F170: 1003.912598 | G170: 4.21052599 | H170: 0.9022240639 | I170: 4.056556225 | J170: 191.4105225 | K170: 1003.162354 | L170: 1002.323303
A171: 4.736841679 | B171: 2.436832905 | C171: 0.9503542185 | D171: 191.9368439 | E171: 1003.956543 | F171: 1003.910522 | G171: 4.736841679 | H171: 0.9065803289 | I171: 4.030423641 | J171: 191.9368439 | K171: 1003.208557 | L171: 1002.380249
A172: 5.263157368 | B172: 2.381891251 | C172: 0.985229075 | D172: 192.46315 | E172: 1003.957703 | F172: 1003.908203 | G172: 5.263157368 | H172: 0.911603868 | I172: 4.000625134 | J172: 192.46315 | K172: 1003.254028 | L172: 1002.437927
A173: 5.789473057 | B173: 2.32635355 | C173: 1.022520542 | D173: 192.9894714 | E173: 1003.958618 | F173: 1003.905273 | G173: 5.789473057 | H173: 0.9173967242 | I173: 3.966703653 | J173: 192.9894714 | K173: 1003.298645 | L173: 1002.496338
A174: 6.315788746 | B174: 2.270516872 | C174: 1.062245607 | D174: 193.5157928 | E174: 1003.959656 | F174: 1003.9021 | G174: 6.315788746 | H174: 0.9249995947 | I174: 3.922884941 | J174: 193.5157928 | K174: 1003.341248 | L174: 1002.55658
A175: 6.842104435 | B175: 2.214667797 | C175: 1.104405165 | D175: 194.042099 | E175: 1003.96106 | F175: 1003.898865 | G175: 6.842104435 | H175: 0.9339277744 | I175: 3.872419119 | J175: 194.042099 | K175: 1003.382751 | L175: 1002.618164
A176: 7.368420124 | B176: 2.158054829 | C176: 1.149829865 | D176: 194.5684204 | E176: 1003.96228 | F176: 1003.894897 | G176: 7.368420124 | H176: 0.944737792 | I176: 3.812706947 | J176: 194.5684204 | K176: 1003.422791 | L176: 1002.68158
A177: 7.894735813 | B177: 2.101345778 | C177: 1.198284388 | D177: 195.0947266 | E177: 1003.96405 | F177: 1003.890808 | G177: 7.894735813 | H177: 0.9582692385 | I177: 3.740032196 | J177: 195.0947266 | K177: 1003.460999 | L177: 1002.747742
A178: 8.421051979 | B178: 2.044220448 | C178: 1.250355005 | D178: 195.621048 | E178: 1003.966064 | F178: 1003.886353 | G178: 8.421051979 | H178: 0.9762881994 | I178: 3.646668911 | J178: 195.621048 | K178: 1003.49646 | L178: 1002.81842
A179: 8.947367668 | B179: 1.986290693 | C179: 1.306816101 | D179: 196.1473694 | E179: 1003.968079 | F179: 1003.881042 | G179: 8.947367668 | H179: 1.00055337 | I179: 3.52674818 | J179: 196.1473694 | K179: 1003.52948 | L179: 1002.895264
A180: 9.473683357 | B180: 1.927369833 | C180: 1.368392348 | D180: 196.6736755 | E180: 1003.970215 | F180: 1003.874756 | G180: 9.473683357 | H180: 1.038103938 | I180: 3.353264332 | J180: 196.6736755 | K180: 1003.558838 | L180: 1002.985474
A181: 9.999999046 | B181: 1.867469192 | C181: 1.435722589 | D181: 197.1999969 | E181: 1003.972595 | F181: 1003.867493 | G181: 9.999999046 | H181: 1.165405154 | I181: 2.856187582 | J181: 197.1999969 | K181: 1003.58136 | L181: 1003.165405
A182: 0 | B182: 1.867469668 | C182: 1.435721993 | D182: 197.1999969 | E182: 1003.972595 | F182: 1003.867493 | G182: 0 | H182: 1.048897505 | I182: 3.305922508 | J182: 197.1999969 | K182: 1003.60614 | L182: 1003.048889
A183: 1.052631617 | B183: 1.810221195 | C183: 1.504997611 | D183: 198.2526245 | E183: 1003.978333 | F183: 1003.862854 | G183: 1.052631617 | H183: 1.028761148 | I183: 3.395127296 | J183: 198.2526245 | K183: 1003.669128 | L183: 1003.081421
A184: 2.105263233 | B184: 1.751973748 | C184: 1.580958009 | D184: 199.3052673 | E184: 1003.98468 | F184: 1003.857239 | G184: 2.105263233 | H184: 1.020259261 | I184: 3.433956146 | J184: 199.3052673 | K184: 1003.726807 | L184: 1003.125549
A185: 3.15789485 | B185: 1.693259716 | C185: 1.663736582 | D185: 200.3578949 | E185: 1003.99231 | F185: 1003.851135 | G185: 3.15789485 | H185: 1.00948143 | I185: 3.484214067 | J185: 200.3578949 | K185: 1003.786377 | L185: 1003.167358
A186: 4.210526466 | B186: 1.633205891 | C186: 1.755604386 | D186: 201.4105225 | E186: 1004.000916 | F186: 1003.84375 | G186: 4.210526466 | H186: 0.9957895875 | I186: 3.549785852 | J186: 201.4105225 | K186: 1003.848816 | L186: 1003.206299
A187: 5.263157845 | B187: 1.571532965 | C187: 1.858460069 | D187: 202.46315 | E187: 1004.010803 | F187: 1003.834717 | G187: 5.263157845 | H187: 0.9791764021 | I187: 3.632053375 | J187: 202.46315 | K187: 1003.914978 | L187: 1003.24231
A188: 6.315789223 | B188: 1.507678866 | C188: 1.975235701 | D188: 203.5157928 | E188: 1004.0224 | F188: 1003.823486 | G188: 6.315789223 | H188: 0.9592061043 | I188: 3.735083342 | J188: 203.5157928 | K188: 1003.986328 | L188: 1003.275024
A189: 7.368420601 | B189: 1.441162825 | C189: 2.109582424 | D189: 204.5684204 | E189: 1004.036499 | F189: 1003.80957 | G189: 7.368420601 | H189: 0.9368926287 | I189: 3.855892181 | J189: 204.5684204 | K189: 1004.063416 | L189: 1003.305298
A190: 8.421051979 | B190: 1.369261146 | C190: 2.271672964 | D190: 205.621048 | E190: 1004.053467 | F190: 1003.790344 | G190: 8.421051979 | H190: 0.9113758802 | I190: 4.001969814 | J190: 205.621048 | K190: 1004.149048 | L190: 1003.332458
A191: 9.473683357 | B191: 1.286046505 | C191: 2.485132933 | D191: 206.6736755 | E191: 1004.074646 | F191: 1003.759705 | G191: 9.473683357 | H191: 0.8840004206 | I191: 4.168914318 | J191: 206.6736755 | K191: 1004.243896 | L191: 1003.357666
A192: 10.52631474 | B192: 1.165405154 | C192: 2.856187582 | D192: 207.7263184 | E192: 1004.107666 | F192: 1003.691711 | G192: 10.52631474 | H192: 0.8539152145 | I192: 4.365812778 | J192: 207.7263184 | K192: 1004.352112 | L192: 1003.380249
A193: 11.57894611 | B193: 1.165405154 | C193: 2.856187582 | D193: 208.7789459 | E193: 1004.160278 | F193: 1003.744324 | G193: 11.57894611 | H193: 0.8225235343 | I193: 4.587916374 | J193: 208.7789459 | K193: 1004.474731 | L193: 1003.401489
A194: 12.63157749 | B194: 1.165405154 | C194: 2.856187582 | D194: 209.8315735 | E194: 1004.212952 | F194: 1003.796997 | G194: 12.63157749 | H194: 0.7893153429 | I194: 4.843662262 | J194: 209.8315735 | K194: 1004.617126 | L194: 1003.420898
A195: 13.68420887 | B195: 1.165405154 | C195: 2.856187582 | D195: 210.884201 | E195: 1004.265564 | F195: 1003.849609 | G195: 13.68420887 | H195: 0.75453192 | I195: 5.137549877 | J195: 210.884201 | K195: 1004.784546 | L195: 1003.438721
A196: 14.73684025 | B196: 1.165405154 | C196: 2.856187582 | D196: 211.9368439 | E196: 1004.318176 | F196: 1003.902222 | G196: 14.73684025 | H196: 0.7180190086 | I196: 5.47894001 | J196: 211.9368439 | K196: 1004.985474 | L196: 1003.454834
A197: 15.78947163 | B197: 1.165405154 | C197: 2.856187582 | D197: 212.9894714 | E197: 1004.37085 | F197: 1003.954895 | G197: 15.78947163 | H197: 0.6802146435 | I197: 5.873710155 | J197: 212.9894714 | K197: 1005.228821 | L197: 1003.469666
A198: 16.84210396 | B198: 1.165405154 | C198: 2.856187582 | D198: 214.042099 | E198: 1004.423462 | F198: 1004.007507 | G198: 16.84210396 | H198: 0.6416361928 | I198: 6.32765007 | J198: 214.042099 | K198: 1005.52533 | L198: 1003.483765
A199: 17.89473534 | B199: 1.165405154 | C199: 2.856187582 | D199: 215.0947266 | E199: 1004.476074 | F199: 1004.06012 | G199: 17.89473534 | H199: 0.6019140482 | I199: 6.859545708 | J199: 215.0947266 | K199: 1005.895874 | L199: 1003.496643
A200: 18.94736671 | B200: 1.165405154 | C200: 2.856187582 | D200: 216.1473694 | E200: 1004.528748 | F200: 1004.112793 | G200: 18.94736671 | H200: 0.5604118109 | I200: 7.500348568 | J200: 216.1473694 | K200: 1006.37616 | L200: 1003.507751
... 266 more rows
